bitfinex/quotes_BTCUSD_20250716
["timestamp","ask_amount","ask_price","bid_price","bid_amount"]
[1752650225960,0.00804201,118210.0,118200.0,2.12037276]
[1752650226413,0.00804201,118210.0,118200.0,1.6735632]
[1752650228371,0.00804201,118210.0,118200.0,1.6235632]
[1752650228579,0.00804201,118210.0,118200.0,2.12037276]
[1752650230887,0.00804201,118210.0,118200.0,2.20950276]
[1752650231514,0.10124301,118250.0,118200.0,2.20950276]
[1752650231726,0.10969909,118250.0,118240.0,0.19451874]
[1752650231940,0.11167909,118250.0,118240.0,0.32691874]
[1752650232356,0.10322301,118250.0,118240.0,0.32691874]
[1752650232564,0.12013517,118250.0,118240.0,0.32691874]
[1752650232761,0.11667902,118250.0,118240.0,0.32691874]
[1752650232970,0.13164173,118250.0,118240.0,0.32691874]
[1752650233185,0.13164166,118250.0,118240.0,0.32691874]
[1752650233401,0.05454242,118250.0,118240.0,0.32691874]
[1752650233609,0.05154242,118250.0,118240.0,0.32691874]
[1752650233812,0.06845509,118250.0,118240.0,0.32691874]
[1752650234025,0.05999865,118250.0,118240.0,0.32691874]
[1752650234261,0.05154242,118250.0,118240.0,0.32691874]
[1752650234450,0.03463026,118250.0,118240.0,0.32691874]
[1752650234655,0.03723026,118250.0,118240.0,0.32691874]
[1752650234873,0.04308634,118250.0,118240.0,0.32991874]
[1752650235087,0.04308634,118250.0,118240.0,0.33191874]
[1752650235292,0.04568634,118250.0,118240.0,0.33191874]
[1752650235602,0.4898959,118250.0,118240.0,0.33191874]
[1752650235739,0.50680857,118250.0,118240.0,0.33191874]
[1752650236345,0.5068085,118250.0,118240.0,0.33191874]
[1752650236579,0.4983522,118250.0,118240.0,0.33191874]
[1752650237674,0.48143982,118250.0,118240.0,0.33191874]
[1752650237892,0.48143982,118250.0,118240.0,0.33489874]
[1752650238116,0.4898959,118250.0,118240.0,0.33489874]
[1752650238549,0.49835213,118250.0,118240.0,0.33489874]
[1752650238755,0.4898959,118250.0,118240.0,0.33191874]
[1752650238962,0.5068085,118250.0,118240.0,0.33191874]
[1752650239524,0.49835213,118250.0,118240.0,0.33191874]
[1752650239798,0.50680843,118250.0,118240.0,0.33191874]
[1752650240430,0.49835213,118250.0,118240.0,0.33191874]
[1752650241072,0.38657311,118250.0,118240.0,0.33191874]
[1752650241711,0.37811688,118250.0,118240.0,0.33191874]
[1752650242353,0.39502962,118250.0,118240.0,0.33191874]
[1752650242531,0.38657318,118250.0,118240.0,0.33191874]
[1752650242979,0.05154264,118250.0,118240.0,0.33191874]
[1752650243191,0.38657311,118250.0,118240.0,0.33191874]
[1752650243441,0.40348592,118250.0,118240.0,0.33191874]
[1752650243658,0.40348585,118250.0,118240.0,0.33191874]
[1752650244705,0.39502941,118250.0,118240.0,0.33191874]
[1752650244914,0.40348585,118250.0,118240.0,0.33191874]
[1752650245411,0.41454236,118250.0,118240.0,0.33191874]
[1752650245613,0.41194236,118250.0,118240.0,0.33191874]
[1752650245821,0.40348585,118250.0,118240.0,0.33191874]
[1752650247355,0.41194243,118250.0,118240.0,0.33191874]
[1752650248224,0.40348585,118250.0,118240.0,0.33191874]
[1752650249129,0.41194236,118250.0,118240.0,0.33191874]
[1752650249341,0.06845531,118250.0,118240.0,0.33191874]
[1752650249552,0.40348585,118250.0,118240.0,0.33191874]
[1752650249778,0.41194236,118250.0,118240.0,0.33191874]
[1752650250538,0.40348585,118250.0,118240.0,0.33191874]
[1752650250803,0.07691182,118250.0,118240.0,0.33191874]
[1752650251031,0.41194236,118250.0,118240.0,0.33191874]
[1752650251267,0.40348585,118250.0,118240.0,0.33191874]
[1752650251921,0.40348578,118250.0,118240.0,0.33494874]
[1752650252126,0.41194229,118250.0,118240.0,0.33494874]
[1752650252961,0.40348578,118250.0,118240.0,0.33191874]
[1752650253381,0.41194229,118250.0,118240.0,0.33191874]
[1752650254415,0.41194222,118250.0,118240.0,0.33191874]
[1752650255200,0.41194222,118250.0,118240.0,0.33494874]
[1752650255972,0.41194265,118250.0,118240.0,0.33494874]
[1752650256392,0.40348642,118250.0,118240.0,0.33494874]
[1752650257192,0.40348642,118250.0,118240.0,0.33191874]
[1752650258114,0.39502991,118250.0,118240.0,0.33191874]
[1752650258743,0.39502991,118250.0,118240.0,0.33494874]
[1752650258869,0.40348642,118250.0,118240.0,0.33494874]
[1752650259072,0.40348642,118250.0,118240.0,0.33191874]
[1752650259526,0.37862991,118250.0,118240.0,0.33191874]
[1752650259772,0.38708642,118250.0,118240.0,0.33191874]
[1752650261300,0.05205588,118250.0,118240.0,0.33494874]
[1752650261461,0.37862991,118250.0,118240.0,0.33494874]
[1752650262088,0.05205588,118250.0,118240.0,0.33494874]
[1752650262285,0.38708642,118250.0,118240.0,0.33494874]
[1752650262539,0.37862991,118250.0,118240.0,0.33494874]
[1752650263619,0.04359937,118250.0,118240.0,0.33700874]
[1752650263824,0.37862991,118250.0,118240.0,0.33700874]
[1752650264026,0.38708642,118250.0,118240.0,0.33700874]
[1752650264557,0.37017318,118250.0,118240.0,0.33700874]
[1752650264892,0.37862962,118250.0,118240.0,0.33700874]
[1752650266691,0.38708613,118250.0,118240.0,0.33700874]
[1752650267464,0.38708613,118250.0,118240.0,0.33191874]
[1752650267932,0.38708613,118250.0,118240.0,0.33494874]
[1752650268145,0.37862962,118250.0,118240.0,0.33494874]
[1752650268355,0.37862962,118250.0,118240.0,0.33700874]
[1752650268994,0.38708613,118250.0,118240.0,0.33700874]
[1752650269835,0.36242962,118250.0,118240.0,0.33700874]
[1752650270166,0.35397318,118250.0,118240.0,0.33700874]
[1752650271140,0.37852962,118250.0,118240.0,0.33700874]
[1752650271551,0.35397318,118250.0,118240.0,0.33700874]
[1752650272813,0.01894264,118250.0,118240.0,0.33700874]
[1752650273022,0.36242962,118250.0,118240.0,0.33700874]
[1752650273231,0.35397318,118250.0,118240.0,0.33700874]
[1752650273490,0.36242955,118250.0,118240.0,0.33700874]
[1752650273903,0.02739901,118250.0,118240.0,0.33700874]
[1752650274114,0.36242955,118250.0,118240.0,0.33700874]
[1752650275409,0.37088606,118250.0,118240.0,0.33700874]
[1752650276732,0.03585552,118250.0,118240.0,0.33700874]
[1752650276890,0.37088606,118250.0,118240.0,0.33700874]
[1752650278390,0.36242955,118250.0,118240.0,0.33700874]
[1752650279339,0.37088606,118250.0,118240.0,0.33700874]
[1752650279989,0.37088606,118250.0,118240.0,0.20460874]
[1752650280194,0.55611925,118250.0,118240.0,0.33163874]
[1752650280413,0.38698606,118250.0,118240.0,0.33163874]
[1752650280915,0.05195552,118250.0,118240.0,0.33670874]
[1752650281210,0.38698606,118250.0,118240.0,0.33670874]
[1752650281387,0.38698599,118250.0,118240.0,0.33670874]
[1752650281798,0.35199318,118250.0,118240.0,0.33670874]
[1752650282002,0.36044962,118250.0,118240.0,0.33670874]
[1752650282256,0.35199318,118250.0,118240.0,0.33670874]
[1752650282424,0.35199318,118250.0,118240.0,0.36290874]
[1752650282838,0.36044962,118250.0,118240.0,0.36290874]
[1752650283172,0.01696264,118250.0,118240.0,0.36290874]
[1752650283382,0.35199325,118250.0,118240.0,0.36290874]
[1752650284011,0.36044933,118250.0,118240.0,0.36290874]
[1752650284232,0.35199303,118250.0,118240.0,0.36290874]
[1752650284453,0.36044933,118250.0,118240.0,0.36290874]
[1752650284698,0.3350808,118250.0,118240.0,0.36299542]
[1752650284918,0.34353688,118250.0,118240.0,0.36299542]
[1752650285131,0.34353681,118250.0,118240.0,0.36299542]
[1752650285790,0.35199304,118250.0,118240.0,0.36299542]
[1752650286050,0.3350808,118250.0,118240.0,0.39439542]
[1752650286709,0.34353688,118250.0,118240.0,0.39439542]
[1752650286925,0.34353681,118250.0,118240.0,0.36299542]
[1752650287145,0.35199296,118250.0,118240.0,0.36299542]
[1752650288852,0.36044919,118250.0,118240.0,0.36299542]
[1752650290136,0.36890556,118250.0,118240.0,0.36299542]
[1752650290294,0.36044919,118250.0,118240.0,0.36299542]
[1752650291669,0.02541865,118250.0,118240.0,0.36299542]
[1752650291889,0.36044919,118250.0,118240.0,0.36299542]
[1752650292559,0.02541865,118250.0,118240.0,0.36299542]
[1752650292782,0.35199296,118250.0,118240.0,0.36299542]
[1752650293188,0.01696242,118250.0,118240.0,0.36299542]
[1752650293421,0.35199296,118250.0,118240.0,0.36299542]
[1752650294496,0.36044926,118250.0,118240.0,0.36299542]
[1752650294715,0.36044919,118250.0,118240.0,0.36299542]
[1752650295136,0.36890556,118250.0,118240.0,0.36299542]
[1752650296167,0.36890549,118250.0,118240.0,0.36299542]
[1752650297338,0.37736193,118250.0,118240.0,0.36299542]
[1752650298002,0.36890549,118250.0,118240.0,0.36299542]
[1752650298257,0.36044919,118250.0,118240.0,0.36299542]
[1752650299532,0.35199296,118250.0,118240.0,0.36299542]
[1752650300722,0.36044926,118250.0,118240.0,0.36299542]
[1752650301816,0.01696242,118250.0,118240.0,0.36299542]
[1752650301966,0.36044926,118250.0,118240.0,0.33679542]
[1752650302169,0.35199296,118250.0,118240.0,0.33679542]
[1752650302368,0.34353681,118250.0,118240.0,0.33679542]
[1752650302828,0.35199304,118250.0,118240.0,0.33679542]
[1752650303041,0.35199296,118250.0,118240.0,0.33679542]
[1752650303238,0.36044919,118250.0,118240.0,0.33679542]
[1752650304007,0.02541865,118250.0,118240.0,0.33679542]
[1752650304203,0.36044919,118250.0,118240.0,0.33679542]
[1752650305235,0.36890556,118250.0,118240.0,0.33679542]
[1752650305448,0.36044919,118250.0,118240.0,0.33679542]
[1752650305670,0.36890549,118250.0,118240.0,0.33679542]
[1752650305911,0.37736193,118250.0,118240.0,0.33679542]
[1752650306146,0.36890549,118250.0,118240.0,0.33679542]
[1752650308589,0.37736193,118250.0,118240.0,0.33679542]
[1752650310071,0.37736243,118250.0,118240.0,0.33679542]
[1752650310736,0.35160198,118250.0,118240.0,0.33679542]
[1752650311292,0.5311714,118250.0,118240.0,0.18269147]
[1752650311544,0.74558148,118250.0,118240.0,0.34002244]
[1752650311766,0.91471517,118250.0,118240.0,0.34002244]
[1752650312413,0.73712533,118250.0,118240.0,0.34002244]
[1752650313386,0.90625852,118250.0,118240.0,0.34002244]
[1752650313584,0.91471517,118250.0,118240.0,0.34002244]
[1752650315131,0.90625894,118250.0,118240.0,0.33156557]
[1752650319462,0.88975894,118250.0,118240.0,0.33156557]
[1752650319936,0.88130229,118250.0,118240.0,0.34002244]
[1752650320205,0.71216903,118250.0,118240.0,0.34002244]
[1752650320423,0.35358198,118250.0,118240.0,0.34199244]
[1752650320632,0.35358198,118250.0,118240.0,0.34498244]
[1752650321118,0.53117168,118250.0,118240.0,0.34498244]
[1752650322529,0.53117168,118250.0,118240.0,0.33652557]
[1752650322726,0.53962826,118250.0,118240.0,0.33652557]
[1752650322935,0.54808491,118250.0,118240.0,0.33652557]
[1752650324236,0.53962826,118250.0,118240.0,0.33652557]
[1752650324442,0.53962826,118250.0,118240.0,0.33652571]
[1752650324651,0.53962826,118250.0,118240.0,0.32806863]
[1752650324863,0.53962826,118250.0,118240.0,0.3280687]
[1752650325074,0.55512826,118250.0,118240.0,0.33652586]
[1752650325268,0.22009772,118250.0,118240.0,0.3231087]
[1752650325475,0.21164114,118250.0,118240.0,0.33156571]
[1752650325599,0.52271517,118250.0,118240.0,0.34498265]
[1752650326402,0.53117175,118250.0,118240.0,0.33652571]
[1752650326642,0.53117168,118250.0,118240.0,0.33652578]
[1752650326851,0.53117168,118250.0,118240.0,0.34498279]
[1752650327784,0.53117168,118250.0,118240.0,0.35343973]
[1752650328002,0.53117168,118250.0,118240.0,0.34498279]
[1752650328428,0.53117168,118250.0,118240.0,0.3280687]
[1752650328631,0.53117168,118250.0,118240.0,0.33652578]
[1752650329378,0.53117168,118250.0,118240.0,0.3280687]
[1752650329580,0.53962833,118250.0,118240.0,0.33652586]
[1752650329890,0.53117168,118250.0,118240.0,0.33652586]
[1752650330097,0.53117168,118250.0,118240.0,0.34498294]
[1752650330309,0.53117168,118250.0,118240.0,0.35343988]
[1752650330533,0.53117168,118250.0,118240.0,0.35343995]
[1752650330734,0.53117168,118250.0,118240.0,0.35343959]
[1752650330939,0.53117168,118250.0,118240.0,0.34498265]
[1752650331363,0.53117168,118250.0,118240.0,0.35343959]
[1752650331588,0.53117168,118250.0,118240.0,0.35343923]
[1752650331791,0.53117168,118250.0,118240.0,0.34498236]
[1752650332170,0.53117168,118250.0,118240.0,0.32806841]
[1752650332322,0.53962833,118250.0,118240.0,0.33652578]
[1752650332704,0.53117168,118250.0,118240.0,0.33652578]
[1752650332886,0.53117168,118250.0,118240.0,0.34498272]
[1752650333423,0.53117168,118250.0,118240.0,0.33652578]
[1752650333812,0.53962833,118250.0,118240.0,0.33652578]
[1752650334018,0.53962826,118250.0,118240.0,0.33652578]
[1752650335022,0.53962826,118250.0,118240.0,0.32806877]
[1752650335233,0.53962826,118250.0,118240.0,0.33652593]
[1752650335853,0.53962826,118250.0,118240.0,0.34498301]
[1752650336303,0.54808491,118250.0,118240.0,0.33652593]
[1752650336519,0.88311545,118250.0,118240.0,0.31961154]
[1752650336752,0.87465915,118250.0,118240.0,0.32806884]
[1752650336946,0.53962861,118250.0,118240.0,0.33652607]
[1752650337359,0.87465915,118250.0,118240.0,0.33652607]
[1752650337571,0.52271538,118250.0,118240.0,0.35344031]
[1752650337786,0.52271538,118250.0,118240.0,0.35343995]
[1752650337995,0.52271538,118250.0,118240.0,0.34498294]
[1752650338629,0.53117203,118250.0,118240.0,0.33652586]
[1752650339081,0.52271538,118250.0,118240.0,0.34498294]
[1752650339306,0.5227151,118250.0,118240.0,0.35343995]
[1752650339723,0.5227151,118250.0,118240.0,0.35343959]
[1752650340618,0.52107604,118250.0,118240.0,0.35343923]
[1752650341731,0.52107582,118250.0,118240.0,0.35343923]
[1752650342164,0.52953212,118250.0,118240.0,0.35343923]
[1752650342179,0.52953212,118250.0,118240.0,0.34498236]
[1752650342424,0.53798856,118250.0,118240.0,0.34498236]
[1752650342647,0.54644514,118250.0,118240.0,0.3280687]
[1752650342857,0.54644514,118250.0,118240.0,0.33652578]
[1752650343077,0.54644514,118250.0,118240.0,0.3280687]
[1752650343332,0.54644514,118250.0,118240.0,0.33652578]
[1752650343527,0.53798856,118250.0,118240.0,0.33652578]
[1752650343737,0.54644507,118250.0,118240.0,0.33652578]
[1752650343945,0.53798856,118250.0,118240.0,0.34498279]
[1752650344559,0.53798856,118250.0,118240.0,0.35343973]
[1752650344776,0.53798856,118250.0,118240.0,0.34498279]
[1752650345209,0.54644514,118250.0,118240.0,0.33652578]
[1752650345427,0.53798856,118250.0,118240.0,0.33652578]
[1752650345663,0.53997913,118250.0,118240.0,0.32806877]
[1752650346141,0.53997913,118250.0,118240.0,0.33652593]
[1752650346797,0.53997913,118250.0,118240.0,0.34498301]
[1752650347904,0.53997913,118250.0,118240.0,0.33652593]
[1752650348141,0.53997913,118250.0,118240.0,0.32806877]
[1752650348350,0.53997913,118250.0,118240.0,0.33652593]
[1752650348560,0.54843578,118250.0,118240.0,0.33652593]
[1752650348771,0.54843578,118250.0,118240.0,0.32806877]
[1752650348982,0.5399797,118250.0,118240.0,0.33652607]
[1752650349202,0.5399797,118250.0,118240.0,0.34498323]
[1752650349415,0.53152305,118250.0,118240.0,0.34498323]
[1752650349711,0.53152305,118250.0,118240.0,0.33652607]
[1752650349910,0.53152305,118250.0,118240.0,0.34498323]
[1752650350299,0.53152305,118250.0,118240.0,0.35344031]
[1752650350497,0.53152305,118250.0,118240.0,0.34498323]
[1752650350704,0.52306647,118250.0,118240.0,0.35344031]
[1752650350931,0.52306647,118250.0,118240.0,0.35343995]
[1752650351104,0.53152298,118250.0,118240.0,0.33652586]
[1752650351286,0.53152298,118250.0,118240.0,0.34498294]
[1752650351617,0.53997956,118250.0,118240.0,0.34498294]
[1752650351813,0.53152298,118250.0,118240.0,0.34498294]
[1752650351987,0.53152298,118250.0,118240.0,0.33652586]
[1752650352216,0.53152298,118250.0,118240.0,0.34498294]
[1752650352594,0.53997956,118250.0,118240.0,0.33652586]
[1752650352798,0.53152298,118250.0,118240.0,0.33652586]
[1752650353001,0.53152298,118250.0,118240.0,0.34498294]
[1752650353201,0.53152298,118250.0,118240.0,0.33652586]
[1752650353605,0.53152298,118250.0,118240.0,0.35343995]
[1752650353806,0.53152298,118250.0,118240.0,0.34498294]
[1752650354200,0.53997963,118250.0,118240.0,0.33652586]
[1752650354426,0.53997963,118250.0,118240.0,0.31961147]
[1752650354635,0.53997963,118250.0,118240.0,0.3280687]
[1752650354853,0.53997963,118250.0,118240.0,0.33652586]
[1752650355215,0.53997963,118250.0,118240.0,0.3280687]
[1752650355790,0.53997963,118250.0,118240.0,0.33652586]
[1752650356482,0.53997963,118250.0,118240.0,0.31961147]
[1752650356665,0.53997963,118250.0,118240.0,0.32806884]
[1752650357014,0.53997963,118250.0,118240.0,0.14200668]
[1752650357224,0.55537963,118250.0,118240.0,0.31465154]
[1752650357453,0.55537963,118250.0,118240.0,0.32310884]
[1752650357651,0.55537963,118250.0,118240.0,0.34002323]
[1752650358252,0.55537963,118250.0,118240.0,0.33156607]
[1752650358459,0.55537963,118250.0,118240.0,0.32310884]
[1752650359646,0.55537963,118250.0,118240.0,0.33156607]
[1752650359855,0.55537963,118250.0,118240.0,0.3231087]
[1752650360074,0.53152298,118250.0,118240.0,0.33361578]
[1752650360303,0.52306647,118250.0,118240.0,0.34511279]
[1752650361011,0.52306647,118250.0,118240.0,0.33665578]
[1752650361243,0.53152305,118250.0,118240.0,0.33665578]
[1752650361461,0.53152298,118250.0,118240.0,0.34511279]
[1752650361664,0.53997956,118250.0,118240.0,0.3281987]
[1752650362516,0.53997956,118250.0,118240.0,0.33665592]
[1752650363467,0.53997956,118250.0,118240.0,0.34511293]
[1752650363468,0.52306647,118250.0,118240.0,0.34511293]
[1752650363969,0.52306647,118250.0,118240.0,0.33665592]
[1752650364186,0.52306647,118250.0,118240.0,0.34511293]
[1752650364608,0.53152298,118250.0,118240.0,0.34511293]
[1752650365564,0.53152298,118250.0,118240.0,0.34511308]
[1752650366493,0.53152255,118250.0,118240.0,0.34511272]
[1752650367235,0.53997906,118250.0,118240.0,0.33665571]
[1752650367687,0.53152255,118250.0,118240.0,0.34511265]
[1752650367893,0.53152255,118250.0,118240.0,0.34511272]
[1752650368831,0.53152255,118250.0,118240.0,0.33665571]
[1752650369055,0.53997913,118250.0,118240.0,0.33665571]
[1752650369330,0.53152255,118250.0,118240.0,0.34511272]
[1752650370192,0.53997913,118250.0,118240.0,0.33665571]
[1752650370411,0.53152255,118250.0,118240.0,0.33665571]
[1752650370632,0.53997913,118250.0,118240.0,0.33665571]
[1752650371072,0.53997913,118250.0,118240.0,0.32819863]
[1752650371374,0.53997913,118250.0,118240.0,0.33665571]
[1752650371583,0.53997913,118250.0,118240.0,0.32819863]
[1752650372862,0.53997913,118250.0,118240.0,0.33665571]
[1752650373494,0.53997906,118250.0,118240.0,0.34511272]
[1752650373715,0.17957927,118250.0,118240.0,0.34511272]
[1752650373940,0.52953226,118250.0,118240.0,0.35356959]
[1752650374705,0.5379887,118250.0,118240.0,0.35356966]
[1752650374917,0.53798863,118250.0,118240.0,0.35356966]
[1752650376060,0.54644514,118250.0,118240.0,0.34511272]
[1752650376271,0.53798863,118250.0,118240.0,0.35356966]
[1752650377368,0.54644507,118250.0,118240.0,0.34511272]
[1752650377594,0.33503054,118250.0,118240.0,0.35356966]
[1752650377831,0.52960229,118260.0,118250.0,0.17758984]
[1752650378043,0.5484936,118260.0,118250.0,0.20295937]
[1752650378254,0.54003766,118260.0,118250.0,0.21141567]
[1752650378488,0.00198,118260.0,118250.0,0.22731482]
[1752650378720,0.00198,118260.0,118250.0,0.24251482]
[1752650378930,0.34546591,118260.0,118250.0,0.24251482]
[1752650379136,0.34348584,118260.0,118250.0,0.24452482]
[1752650379352,0.33503054,118260.0,118250.0,0.24776482]
[1752650379568,0.34348591,118260.0,118250.0,0.24776482]
[1752650379789,0.33503054,118260.0,118250.0,0.24776482]
[1752650381365,0.01690952,118270.0,118260.0,0.19448585]
[1752650381582,0.37088044,118270.0,118260.0,0.32600585]
[1752650383083,0.37088044,118270.0,118260.0,0.32900585]
[1752650383306,0.54844018,118270.0,118260.0,0.32900585]
[1752650383536,0.56464068,118270.0,118260.0,0.32900585]
[1752650384319,0.39553609,118270.0,118260.0,0.32900585]
[1752650384527,0.56464068,118270.0,118260.0,0.32900599]
[1752650384743,0.55618588,118270.0,118260.0,0.32900599]
[1752650385912,0.37017092,118270.0,118260.0,0.34591694]
[1752650386128,0.35397092,118270.0,118260.0,0.34591694]
[1752650386469,0.36242564,118270.0,118260.0,0.34591694]
[1752650386699,0.36242564,118270.0,118260.0,0.34915694]
[1752650387347,0.35397056,118270.0,118260.0,0.35015694]
[1752650387563,0.36242571,118270.0,118260.0,0.35015694]
[1752650387747,0.35397056,118270.0,118260.0,0.35015694]
[1752650388003,0.36242564,118270.0,118260.0,0.35015694]
[1752650388703,0.35397056,118270.0,118260.0,0.35015694]
[1752650388899,0.36242564,118270.0,118260.0,0.35015694]
[1752650389106,0.35397056,118270.0,118260.0,0.35015694]
[1752650389343,0.36242557,118270.0,118260.0,0.35015694]
[1752650389759,0.36242557,118270.0,118260.0,0.35216694]
[1752650390222,0.37088065,118270.0,118260.0,0.35216694]
[1752650390459,0.53998524,118270.0,118260.0,0.35216694]
[1752650390719,0.54844039,118270.0,118260.0,0.35216694]
[1752650390981,0.37088065,118270.0,118260.0,0.35216694]
[1752650391240,0.36242557,118270.0,118260.0,0.35216694]
[1752650391501,0.53998538,118270.0,118260.0,0.35216694]
[1752650391804,0.53998538,118270.0,118260.0,0.3437115]
[1752650392278,0.53153066,118270.0,118260.0,0.33525599]
[1752650392524,0.53153066,118270.0,118260.0,0.32680041]
[1752650393047,0.53153066,118270.0,118260.0,0.33525599]
[1752650393442,0.53153066,118270.0,118260.0,0.3437115]
[1752650394262,0.53153066,118270.0,118260.0,0.33525599]
[1752650394464,0.53153066,118270.0,118260.0,0.32680041]
[1752650395074,0.53153066,118270.0,118260.0,0.33525599]
[1752650395704,0.53153066,118270.0,118260.0,0.32680056]
[1752650396126,0.52307572,118270.0,118260.0,0.32680056]
[1752650398233,0.52307572,118270.0,118260.0,0.33525621]
[1752650398644,5.036e-05,118270.0,118260.0,0.71004219]
[1752650399479,5.036e-05,118270.0,118260.0,0.37501165]
[1752650399703,5.036e-05,118270.0,118260.0,0.37401165]
[1752650399906,5.036e-05,118270.0,118260.0,1.12958301]
[1752650400134,5.036e-05,118270.0,118260.0,1.15736985]
[1752650400358,2.52e-06,118270.0,118260.0,1.18275885]
[1752650400663,2.52e-06,118270.0,118260.0,1.17975885]
[1752650401124,2.52e-06,118270.0,118260.0,1.18575885]
[1752650401336,2.52e-06,118270.0,118260.0,2.05541024]
[1752650402388,0.36903572,118320.0,118310.0,0.19440365]
[1752650402595,0.36953973,118320.0,118310.0,0.32576365]
[1752650402813,0.00070401,118320.0,118310.0,0.44826393]
[1752650403026,0.00070401,118320.0,118310.0,0.78329447]
[1752650403243,0.00070401,118320.0,118310.0,0.44826393]
[1752650403461,0.00070401,118320.0,118310.0,0.78329447]
[1752650404489,0.00070401,118320.0,118310.0,0.78529447]
[1752650405141,0.0002,118330.0,118320.0,1.16675585]
[1752650405352,0.00025035,118330.0,118320.0,0.80830182]
[1752650405559,0.00025035,118330.0,118320.0,0.81137182]
[1752650405764,0.00025035,118330.0,118320.0,0.83674682]
[1752650406406,0.00025035,118330.0,118320.0,1.13094682]
[1752650406613,0.00025035,118330.0,118320.0,0.34076251]
[1752650406821,0.00025035,118330.0,118320.0,0.39076251]
[1752650407074,0.00025035,118330.0,118320.0,0.34076251]
[1752650407486,0.00025035,118330.0,118320.0,0.86274674]
[1752650408810,0.0002,118370.0,118360.0,0.02534553]
[1752650409043,0.00035101,118370.0,118360.0,0.41313181]
[1752650409254,0.00035101,118370.0,118360.0,0.44820181]
[1752650409467,0.00035101,118370.0,118360.0,0.43210181]
[1752650410098,0.00035101,118370.0,118360.0,0.43410181]
[1752650411416,0.0172461,118370.0,118360.0,0.41820181]
[1752650411586,0.46323041,118370.0,118360.0,0.41820181]
[1752650411834,0.46323041,118370.0,118360.0,0.42220181]
[1752650412279,0.45478276,118370.0,118360.0,0.42220181]
[1752650412710,0.46323034,118370.0,118360.0,0.42220181]
[1752650413796,0.498606,118370.0,118360.0,0.33358153]
[1752650414448,0.49860593,118370.0,118360.0,0.33358153]
[1752650415539,0.49015806,118370.0,118360.0,0.33358153]
[1752650415748,0.49860593,118370.0,118360.0,0.33358153]
[1752650415966,0.498606,118370.0,118360.0,0.33358153]
[1752650416383,0.49015806,118370.0,118360.0,0.33358153]
[1752650416604,0.49860593,118370.0,118360.0,0.33358153]
[1752650416826,0.05262155,118370.0,118360.0,0.33358153]
[1752650417039,0.49860586,118370.0,118360.0,0.33358153]
[1752650417292,0.47365806,118370.0,118360.0,0.33665153]
[1752650417935,0.00035101,118370.0,118360.0,0.33665153]
[1752650418166,0.00035101,118370.0,118360.0,0.35295153]
[1752650421309,0.44633532,118370.0,118360.0,0.35295153]
[1752650423442,0.00035101,118370.0,118360.0,0.35295153]
[1752650423667,0.44633532,118370.0,118360.0,0.35295153]
[1752650424066,0.00035101,118370.0,118360.0,0.35295153]
[1752650424278,0.44633532,118370.0,118360.0,0.35295153]
[1752650424478,0.45478276,118370.0,118360.0,0.35295153]
[1752650424721,0.44633532,118370.0,118360.0,0.74836181]
[1752650424942,0.00233101,118370.0,118360.0,0.63085153]
[1752650425150,0.44831532,118370.0,118360.0,0.63085153]
[1752650425578,0.44831532,118370.0,118360.0,0.33665153]
[1752650426002,0.45676276,118370.0,118360.0,0.33665153]
[1752650426461,0.01922596,118370.0,118360.0,0.33665153]
[1752650426699,0.46521027,118370.0,118360.0,0.33665153]
[1752650427430,0.01077845,118370.0,118360.0,0.33665153]
[1752650427649,0.45676276,118370.0,118360.0,0.33665153]
[1752650428082,0.44831532,118370.0,118360.0,0.33665153]
[1752650428712,0.44633532,118370.0,118360.0,0.33665153]
[1752650429345,0.45421702,118370.0,118360.0,0.33665153]
[1752650429553,0.44633532,118370.0,118360.0,0.33665153]
[1752650432814,0.45676276,118370.0,118360.0,0.33665153]
[1752650433035,0.46521034,118370.0,118360.0,0.33665153]
[1752650433652,0.45676276,118370.0,118360.0,0.33665153]
[1752650435059,0.46521041,118370.0,118360.0,0.33665153]
[1752650435276,0.45676276,118370.0,118360.0,0.33665153]
[1752650435494,0.44633532,118370.0,118360.0,0.33665153]
[1752650435741,0.45478276,118370.0,118360.0,0.33665153]
[1752650436693,0.46323034,118370.0,118360.0,0.33665153]
[1752650436902,0.45478276,118370.0,118360.0,0.33665153]
[1752650437120,0.46323034,118370.0,118360.0,0.33665153]
[1752650437319,0.47114912,118370.0,118360.0,0.33665153]
[1752650437532,0.46270154,118370.0,118360.0,0.33665153]
[1752650437745,0.46323034,118370.0,118360.0,0.33665153]
[1752650438056,0.46323034,118370.0,118360.0,0.33156153]
[1752650438057,0.46522034,118370.0,118360.0,0.33156153]
[1752650438266,0.52326387,118370.0,118360.0,0.3314016]
[1752650438384,0.52326387,118370.0,118360.0,0.3398499]
[1752650439220,0.6922256,118370.0,118360.0,0.3398499]
[1752650439444,0.52326387,118370.0,118360.0,0.3398499]
[1752650439651,0.52326387,118370.0,118360.0,0.2087699]
[1752650439852,0.6922256,118370.0,118360.0,0.3398499]
[1752650440740,0.69222624,118370.0,118360.0,0.3314016]
[1752650441026,0.68377866,118370.0,118360.0,0.3314016]
[1752650441443,0.68377866,118370.0,118360.0,0.3398499]
[1752650442533,0.51481693,118370.0,118360.0,0.3398499]
[1752650442743,0.68377866,118370.0,118360.0,0.3398499]
[1752650443195,0.51481693,118370.0,118360.0,0.3398499]
[1752650443542,0.68377866,118370.0,118360.0,0.3398499]
[1752650444473,0.51481693,118370.0,118360.0,0.3398499]
[1752650444690,0.50636885,118370.0,118360.0,0.3398499]
[1752650445184,0.49006885,118370.0,118360.0,0.3427999]
[1752650445350,0.49006885,118370.0,118360.0,0.3448399]
[1752650445577,0.66747866,118370.0,118360.0,0.3398499]
[1752650445784,0.49006885,118370.0,118360.0,0.3398499]
[1752650445989,0.48162084,118370.0,118360.0,0.3398499]
[1752650446213,0.49006878,118370.0,118360.0,0.3398499]
[1752650446963,0.49006821,118370.0,118360.0,0.3427999]
[1752650447185,0.49851615,118370.0,118360.0,0.3427999]
[1752650447575,0.49006821,118370.0,118360.0,0.3427999]
[1752650447834,0.49851615,118370.0,118360.0,0.3427999]
[1752650448363,0.49851615,118370.0,118360.0,0.3448399]
[1752650448787,0.48211615,118370.0,118360.0,0.3448399]
[1752650448999,0.0276839,118370.0,118360.0,0.3448399]
[1752650449204,0.47366821,118370.0,118360.0,0.3448399]
[1752650450530,0.00234101,118370.0,118360.0,0.3448399]
[1752650450770,0.46522041,118370.0,118360.0,0.3448399]
[1752650451461,0.46323041,118370.0,118360.0,0.3448399]
[1752650451684,0.00879845,118370.0,118360.0,0.3448399]
[1752650451927,0.44633532,118370.0,118360.0,0.3448399]
[1752650452833,0.45478276,118370.0,118360.0,0.3448399]
[1752650453256,0.44633532,118370.0,118360.0,0.3448399]
[1752650453693,0.4547829,118370.0,118360.0,0.3448399]
[1752650453920,0.00035101,118370.0,118360.0,0.3448399]
[1752650454121,0.44633532,118370.0,118360.0,0.3448399]
[1752650454765,0.45478276,118370.0,118360.0,0.3448399]
[1752650454967,0.44633532,118370.0,118360.0,0.3448399]
[1752650455336,0.44633532,118370.0,118360.0,0.3598399]
[1752650455539,0.44633532,118370.0,118360.0,0.3448399]
[1752650455540,0.45478283,118370.0,118360.0,0.3448399]
[1752650456087,0.46323048,118370.0,118360.0,0.3448399]
[1752650457034,0.46523048,118370.0,118360.0,0.3448399]